bitfinex/quotes_SOLUSD_20241208
["timestamp","ask_amount","ask_price","bid_price","bid_amount"]
[1733674655047,12.78802526,237.5,237.43,12.78802526]
[1733674655357,12.78802526,237.51,237.44,12.78802526]
[1733674655538,12.78802526,237.5,237.43,12.78802526]
[1733674655934,12.78802526,237.51,237.44,12.78802526]
[1733674657037,20.0,237.5,237.46,12.78802526]
[1733674657649,12.78802526,237.55,237.48,12.78802526]
[1733674657952,12.78802526,237.56,237.49,12.78802526]
[1733674658264,12.78802526,237.57,237.5,12.78802526]
[1733674658459,12.78802526,237.56,237.5,12.78802526]
[1733674659255,2.1043,237.61,237.55,12.78802526]
[1733674659557,12.78802526,237.59,237.53,12.78802526]
[1733674659759,12.78802526,237.58,237.52,0.25098]
[1733674660559,12.78802526,237.57,237.5,12.78802526]
[1733674661143,12.78802526,237.55,237.49,12.78802526]
[1733674661362,12.78802526,237.56,237.49,12.78802526]
[1733674661687,12.78802526,237.6,237.53,12.78802526]
[1733674662182,12.78802526,237.59,237.52,12.78802526]
[1733674662470,12.78802526,237.59,237.53,12.78802526]
[1733674662775,12.78802526,237.6,237.53,12.78802526]
[1733674663164,12.78802526,237.6,237.54,0.25098]
[1733674663481,12.78802526,237.6,237.54,13.03900526]
[1733674664160,12.78802526,237.6,237.54,0.25098]
[1733674664663,12.78802526,237.59,237.54,0.25098]
[1733674665184,12.78802526,237.58,237.51,12.78802526]
[1733674665382,12.78802526,237.59,237.52,12.78802526]
[1733674665551,12.78802526,237.59,237.53,13.03900526]
[1733674665751,12.78802526,237.6,237.53,13.03900526]
[1733674666375,12.78802526,237.59,237.53,13.03900526]
[1733674667155,12.78802526,237.59,237.53,0.25098]
[1733674668083,12.78802526,237.63,237.57,12.78802526]
[1733674668381,12.78802526,237.63,237.56,12.78802526]
[1733674668781,12.78802526,237.61,237.55,0.25098]
[1733674670288,2.1041,237.64,237.55,13.03900526]
[1733674670461,12.78802526,237.62,237.55,13.03900526]
[1733674671048,2.1041,237.64,237.55,13.03900526]
[1733674671249,12.78802526,237.62,237.55,13.03900526]
[1733674672100,12.78802526,237.63,237.56,12.78802526]
[1733674672300,12.78802526,237.66,237.6,0.25098]
[1733674672662,12.78802526,237.65,237.6,0.25098]
[1733674673691,12.78802526,237.66,237.6,0.25098]
[1733674673856,12.78802526,237.65,237.59,0.25098]
[1733674674496,12.78802526,237.63,237.58,0.25098]
[1733674674985,12.78802526,237.63,237.56,12.78802526]
[1733674675357,12.78802526,237.61,237.54,12.78802526]
[1733674675775,12.78802526,237.62,237.56,12.78802526]
[1733674675986,12.78802526,237.64,237.57,12.78802526]
[1733674676197,12.78802526,237.65,237.58,13.03900526]
[1733674676787,12.78802526,237.66,237.6,12.78802526]
[1733674677093,12.78802526,237.66,237.59,12.78802526]
[1733674677392,12.78802526,237.65,237.59,12.78802526]
[1733674678090,12.78802526,237.65,237.6,0.25098]
[1733674679406,12.78802526,237.64,237.57,13.03900526]
[1733674679686,12.78802526,237.63,237.56,36.56490926]
[1733674679897,12.78802526,237.64,237.57,12.78802526]
[1733674680784,12.78802526,237.63,237.57,12.78802526]
[1733674680989,12.78802526,237.65,237.58,12.78802526]
[1733674681503,12.78802526,237.64,237.57,12.78802526]
[1733674682793,12.78802526,237.62,237.56,12.78802526]
[1733674682986,12.78802526,237.62,237.56,23.776884]
[1733674683293,12.78802526,237.6,237.54,23.776884]
[1733674683509,12.78802526,237.59,237.53,14.35262526]
[1733674683806,12.78802526,237.57,237.5,12.78802526]
[1733674683967,12.78802526,237.58,237.51,12.78802526]
[1733674684172,12.78802526,237.59,237.53,12.78802526]
[1733674684679,12.78802526,237.59,237.52,12.78802526]
[1733674685382,12.78802526,237.58,237.51,12.78802526]
[1733674685779,12.78802526,237.55,237.48,1.5322]
[1733674685981,12.78802526,237.54,237.48,1.5322]
[1733674686275,12.78802526,237.53,237.48,1.5322]
[1733674686480,12.78802526,237.6,237.45,6.1811]
[1733674686481,12.78802526,237.52,237.45,18.96912526]
[1733674686673,12.78802526,237.52,237.45,12.78802526]
[1733674686870,12.78802526,237.52,237.45,0.25098]
[1733674687270,12.78802526,237.51,237.44,12.78802526]
[1733674687474,12.78802526,237.5,237.43,14.32022526]
[1733674689082,12.78802526,237.47,237.39,18.96912526]
[1733674689401,4.2092,237.57,237.39,18.96912526]
[1733674689402,12.78802526,237.48,237.41,12.78802526]
[1733674689703,12.78802526,237.48,237.39,6.1811]
[1733674689704,12.78802526,237.47,237.4,12.78802526]
[1733674689911,12.78802526,237.43,237.37,1.5322]
[1733674690071,1.6189,237.51,237.34,12.78802526]
[1733674690072,12.78802526,237.42,237.34,12.78802526]
[1733674690276,12.78802526,237.4,237.33,12.78802526]
[1733674690700,12.78802526,237.39,237.32,13.03900526]
[1733674691488,12.78802526,237.39,237.34,0.25098]
[1733674691699,12.78802526,237.39,237.32,12.78802526]
[1733674692000,12.78802526,237.38,237.31,1.5322]
[1733674692169,12.78802526,237.38,237.32,0.25098]
[1733674692905,12.78802526,237.38,237.31,1.5322]
[1733674693213,12.78802526,237.43,237.36,12.78802526]
[1733674693375,12.78802526,237.44,237.37,12.78802526]
[1733674693793,12.78802526,237.45,237.38,12.78802526]
[1733674693996,12.78802526,237.47,237.35,24.027864]
[1733674694197,12.78802526,237.47,237.4,12.78802526]
[1733674694401,12.78802526,237.5,237.43,12.78802526]
[1733674694571,12.78802526,237.51,237.44,12.78802526]
[1733674694779,12.78802526,237.5,237.43,12.78802526]
[1733674695090,12.78802526,237.48,237.42,0.25098]
[1733674695489,12.78802526,237.48,237.41,12.78802526]
[1733674695690,12.78802526,237.47,237.4,12.78802526]
[1733674696590,12.78802526,237.45,237.38,12.78802526]
[1733674697294,12.78802526,237.44,237.37,12.78802526]
[1733674697620,12.78802526,237.4,237.33,12.78802526]
[1733674697974,12.78802526,237.38,237.31,12.78802526]
[1733674698704,12.78802526,237.37,237.3,12.78802526]
[1733674699093,12.78802526,237.39,237.32,12.78802526]
[1733674699299,12.78802526,237.4,237.33,12.78802526]
[1733674700025,12.78802526,237.39,237.32,12.78802526]
[1733674700191,12.78802526,237.38,237.31,12.78802526]
[1733674700896,12.78802526,237.39,237.32,12.78802526]
[1733674702295,12.78802526,237.41,237.34,12.78802526]
[1733674703318,12.78802526,237.41,237.33,12.78802526]
[1733674703731,12.78802526,237.4,237.33,12.78802526]
[1733674704232,12.78802526,237.38,237.32,0.25098]
[1733674704603,12.78802526,237.39,237.32,0.25098]
[1733674705034,12.78802526,237.4,237.33,12.78802526]
[1733674705826,12.78802526,237.39,237.32,13.03900526]
[1733674706007,12.78802526,237.4,237.33,12.78802526]
[1733674706211,12.78802526,237.39,237.32,13.03900526]
[1733674706614,12.78802526,237.4,237.33,12.78802526]
[1733674707711,12.78802526,237.39,237.32,13.03900526]
[1733674711202,12.78802526,237.36,237.29,12.78802526]
[1733674711907,2.1059,237.42,237.3,12.78802526]
[1733674712105,2.1059,237.42,237.32,12.78802526]
[1733674712106,20.0,237.41,237.32,12.78802526]
[1733674712334,12.78802526,237.43,237.36,12.78802526]
[1733674713424,12.78802526,237.43,237.35,12.78802526]
[1733674715411,12.78802526,237.43,237.36,12.78802526]
[1733674715631,12.78802526,237.44,237.37,12.78802526]
[1733674717038,12.78802526,237.46,237.39,12.78802526]
[1733674718932,12.78802526,237.47,237.39,12.78802526]
[1733674719143,12.78802526,237.48,237.4,12.78802526]
[1733674720619,12.78802526,237.48,237.41,12.78802526]
[1733674720820,14.89332526,237.5,237.42,12.78802526]
[1733674721335,12.78802526,237.48,237.41,12.78802526]
[1733674721545,12.78802526,237.47,237.4,12.78802526]
[1733674722727,12.78802526,237.47,237.31,1.6375]
[1733674722728,12.78802526,237.41,237.31,1.6375]
[1733674722925,12.78802526,237.37,237.31,1.6375]
[1733674723431,12.78802526,237.37,237.3,12.78802526]
[1733674723651,12.78802526,237.37,237.29,12.78802526]
[1733674724947,12.78802526,237.35,237.28,12.78802526]
[1733674725343,12.78802526,237.37,237.3,12.78802526]
[1733674725661,12.78802526,237.38,237.31,12.78802526]
[1733674725838,12.78802526,237.4,237.33,12.78802526]
[1733674726026,12.78802526,237.43,237.36,12.78802526]
[1733674726956,12.78802526,237.42,237.35,12.78802526]
[1733674728143,12.78802526,237.43,237.36,12.78802526]
[1733674728553,18.84602526,237.44,237.36,12.78802526]
[1733674728974,12.78802526,237.46,237.39,12.78802526]
[1733674729288,12.78802526,237.46,237.37,23.776884]
[1733674729289,14.42402526,237.48,237.41,12.78802526]
[1733674729656,12.78802526,237.46,237.39,12.78802526]
[1733674729859,12.78802526,237.45,237.38,13.03900526]
[1733674731476,12.78802526,237.46,237.39,12.78802526]
[1733674732660,12.78802526,237.45,237.38,13.03900526]
[1733674733756,12.78802526,237.41,237.34,12.78802526]
[1733674733988,12.78802526,237.37,237.26,1.6187]
[1733674734172,12.78802526,237.36,237.29,12.78802526]
[1733674734692,12.78802526,237.35,237.28,12.78802526]
[1733674735062,12.78802526,237.36,237.3,0.25098]
[1733674735266,12.78802526,237.42,237.35,12.78802526]
[1733674735672,12.78802526,237.41,237.34,12.78802526]
[1733674736958,12.78802526,237.4,237.33,12.78802526]
[1733674737805,12.78802526,237.39,237.33,0.25098]
[1733674738470,6.2231,237.63,237.49,20.0]
[1733674738673,10.0,237.65,237.58,12.78802526]
[1733674740387,12.78802526,237.64,237.57,12.78802526]
[1733674740600,22.78802526,237.65,237.58,12.78802526]
[1733674741071,12.78802526,237.64,237.57,12.78802526]
[1733674741699,10.0,237.65,237.51,0.63129071]
[1733674741700,12.78802526,237.6,237.52,12.78802526]
[1733674742088,12.78802526,237.61,237.54,12.78802526]
[1733674742679,10.0,237.65,237.51,0.63139996]
[1733674742680,12.78802526,237.6,237.53,12.78802526]
[1733674743268,12.78802526,237.58,237.51,12.78802526]
[1733674743611,12.78802526,237.58,237.5,12.78802526]
[1733674743908,12.78802526,237.58,237.51,12.78802526]
[1733674744405,12.78802526,237.59,237.52,12.78802526]
[1733674744788,10.0,237.65,237.58,12.78802526]
[1733674744986,10.0,237.65,237.59,12.78802526]
[1733674745595,12.78802526,237.63,237.57,0.25098]
[1733674745781,12.78802526,237.64,237.57,13.03900526]
[1733674746387,22.78802526,237.65,237.58,12.78802526]
[1733674746591,12.78802526,237.64,237.57,13.03900526]
[1733674746789,12.78802526,237.62,237.55,12.78802526]
[1733674747298,20.41664054,237.62,237.55,20.41664054]
[1733674747489,20.41664054,237.63,237.57,20.41664054]
[1733674749527,20.41664054,237.63,237.56,20.41664054]
[1733674749803,20.41664054,237.58,237.51,20.41664054]
[1733674750173,20.41664054,237.59,237.52,20.41664054]
[1733674750787,20.41664054,237.58,237.51,20.41664054]
[1733674753281,20.41664054,237.6,237.53,20.41664054]
[1733674753608,20.41664054,237.6,237.48,24.027864]
[1733674753609,20.41664054,237.61,237.54,20.41664054]
[1733674754109,20.41664054,237.61,237.53,20.41664054]
[1733674754404,20.41664054,237.61,237.54,20.41664054]
[1733674754609,20.41664054,237.64,237.57,20.41664054]
[1733674755494,20.41664054,237.63,237.56,20.41664054]
[1733674755684,20.41664054,237.62,237.55,20.41664054]
[1733674755874,20.41664054,237.61,237.54,44.44450454]
[1733674756482,20.41664054,237.62,237.55,20.41664054]
[1733674756702,20.41664054,237.63,237.56,20.41664054]
[1733674757790,20.41664054,237.61,237.54,20.41664054]
[1733674757980,20.41664054,237.6,237.53,20.41664054]
[1733674758187,20.41664054,237.59,237.53,20.41664054]
[1733674758596,20.41664054,237.6,237.53,20.41664054]
[1733674759505,20.41664054,237.59,237.52,20.41664054]
[1733674760002,20.41664054,237.6,237.52,20.41664054]
[1733674760223,22.52074054,237.63,237.56,20.41664054]
[1733674760508,2.1041,237.63,237.57,20.41664054]
[1733674760802,22.52074054,237.63,237.56,20.41664054]
[1733674761397,20.41664054,237.64,237.57,20.41664054]
[1733674762496,20.41664054,237.63,237.56,20.41664054]
[1733674762823,20.41664054,237.61,237.54,20.41664054]
[1733674763017,20.41664054,237.6,237.53,20.41664054]
[1733674763325,20.41664054,237.61,237.54,20.41664054]
[1733674764605,20.41664054,237.6,237.53,20.41664054]
[1733674765087,20.41664054,237.61,237.54,20.41664054]
[1733674765292,20.41664054,237.61,237.5,0.25098]
[1733674765293,20.41664054,237.62,237.55,20.41664054]
[1733674765496,20.41664054,237.61,237.55,20.41664054]
[1733674765807,20.41664054,237.61,237.54,20.41664054]
[1733674767225,12.76151446,237.61,237.54,12.76151446]
[1733674769090,12.76151446,237.6,237.54,12.76151446]
[1733674769925,12.76151446,237.6,237.53,12.76151446]
[1733674770106,12.76151446,237.57,237.5,12.76151446]
[1733674770512,12.76151446,237.57,237.49,0.25098]
[1733674770513,12.76151446,237.58,237.51,12.76151446]
[1733674770824,12.76151446,237.52,237.45,12.76151446]
[1733674771003,1.6499,237.58,237.45,12.76151446]
[1733674771004,12.76151446,237.51,237.45,12.76151446]
[1733674771207,12.76151446,237.52,237.46,12.76151446]
[1733674771500,12.76151446,237.52,237.45,12.76151446]
[1733674771696,12.76151446,237.51,237.44,12.76151446]
[1733674772927,12.76151446,237.52,237.45,12.76151446]
[1733674773597,12.76151446,237.51,237.44,12.76151446]
[1733674773800,12.76151446,237.5,237.43,12.76151446]
[1733674774921,12.76151446,237.5,237.42,12.76151446]
[1733674775216,12.76151446,237.49,237.42,12.76151446]
[1733674775807,12.76151446,237.5,237.43,12.76151446]
[1733674776830,12.76151446,237.49,237.42,12.76151446]
[1733674777038,12.76151446,237.51,237.45,12.76151446]
[1733674777223,12.76151446,237.55,237.48,12.76151446]
[1733674777535,12.76151446,237.56,237.49,12.76151446]
[1733674777839,12.76151446,237.53,237.46,12.76151446]
[1733674779617,12.76151446,237.52,237.45,12.76151446]
[1733674779933,12.76151446,237.51,237.44,12.76151446]
[1733674781003,12.76151446,237.49,237.42,12.76151446]
[1733674781239,12.76151446,237.5,237.43,12.76151446]
[1733674782512,12.76151446,237.51,237.43,12.76151446]
[1733674782716,12.76151446,237.52,237.45,12.76151446]
[1733674783940,14.86641446,237.54,237.47,12.76151446]
[1733674784255,0.12549,237.56,237.47,12.76151446]
[1733674784413,12.76151446,237.55,237.48,12.76151446]
[1733674787520,12.76151446,237.53,237.47,12.76151446]
[1733674790757,12.76151446,237.54,237.47,12.76151446]
[1733674791332,12.76151446,237.53,237.47,12.76151446]
[1733674792134,12.76151446,237.51,237.45,12.76151446]
[1733674792839,12.76151446,237.54,237.47,12.76151446]
[1733674794057,12.76151446,237.53,237.47,12.76151446]
[1733674794547,12.76151446,237.5,237.44,12.76151446]
[1733674794748,12.76151446,237.49,237.42,12.76151446]
[1733674794923,12.76151446,237.48,237.41,12.76151446]
[1733674795118,12.76151446,237.47,237.4,12.76151446]
[1733674795764,12.76151446,237.47,237.36,6.75088928]
[1733674795765,12.76151446,237.47,237.41,12.76151446]
[1733674796637,12.76151446,237.45,237.38,12.76151446]
[1733674796837,12.76151446,237.43,237.36,12.76151446]
[1733674797464,1.6412,237.48,237.37,12.76151446]
[1733674797465,12.76151446,237.44,237.37,12.76151446]
[1733674798425,12.76151446,237.43,237.37,12.76151446]
[1733674798667,12.76151446,237.43,237.36,12.76151446]
[1733674800752,6.427,237.47,237.33,12.76151446]
[1733674800753,12.76151446,237.41,237.33,12.76151446]
[1733674801065,12.76151446,237.4,237.33,12.76151446]
[1733674801234,2.1056,237.46,237.31,12.76151446]
[1733674801235,12.76151446,237.39,237.31,12.76151446]
[1733674801633,12.76151446,237.4,237.32,12.76151446]
[1733674801852,12.76151446,237.39,237.31,12.76151446]
[1733674802664,12.76151446,237.37,237.3,12.76151446]
[1733674802868,12.76151446,237.36,237.28,12.76151446]
[1733674803747,12.76151446,237.36,237.29,12.76151446]
[1733674805054,12.76151446,237.37,237.3,12.76151446]
[1733674805279,12.76151446,237.4,237.32,12.76151446]
[1733674806288,12.76151446,237.43,237.36,12.76151446]
[1733674806996,12.76151446,237.39,237.32,12.76151446]
[1733674807188,12.76151446,237.38,237.31,12.76151446]
[1733674807382,12.76151446,237.39,237.32,12.76151446]
[1733674807693,12.76151446,237.37,237.3,12.76151446]
[1733674808254,12.76151446,237.39,237.31,12.76151446]
[1733674809064,12.76151446,237.39,237.26,0.6318678]
[1733674809065,12.76151446,237.39,237.32,12.76151446]
[1733674809753,12.76151446,237.43,237.36,12.76151446]
[1733674810156,12.76151446,237.44,237.37,12.76151446]
[1733674811590,12.76151446,237.43,237.36,12.76151446]
[1733674812283,12.76151446,237.39,237.33,12.76151446]
[1733674813473,12.76151446,237.41,237.34,12.76151446]
[1733674813656,14.86731446,237.43,237.37,12.76151446]
[1733674813855,12.76151446,237.43,237.37,12.76151446]
[1733674814056,12.76151446,237.43,237.36,12.76151446]
[1733674816256,12.76151446,237.44,237.38,12.76151446]
[1733674817094,6.427,237.47,237.43,12.76151446]
[1733674817592,19.18851446,237.47,237.4,12.76151446]
[1733674817893,12.76151446,237.46,237.4,12.76151446]
[1733674818570,12.76151446,237.46,237.39,12.76151446]
[1733674819375,12.76151446,237.46,237.4,12.76151446]
[1733674819676,14.40271446,237.48,237.42,12.76151446]
[1733674819883,12.76151446,237.47,237.4,12.76151446]
[1733674820605,12.76151446,237.47,237.41,12.76151446]
[1733674820775,14.40271446,237.48,237.41,12.76151446]
[1733674821904,12.76151446,237.47,237.4,12.76151446]
[1733674822908,1.6412,237.48,237.43,12.76151446]
[1733674823111,32.76151446,237.49,237.42,12.76151446]
[1733674823274,12.76151446,237.48,237.41,12.76151446]
[1733674823471,20.0,237.49,237.41,12.76151446]
[1733674823686,20.0,237.49,237.39,12.76151446]
[1733674823687,12.76151446,237.46,237.39,12.76151446]
[1733674824498,12.76151446,237.47,237.4,12.76151446]
[1733674830071,12.76151446,237.46,237.37,20.0]
[1733674830277,12.76151446,237.46,237.4,12.76151446]
[1733674831179,8.17777786,237.46,237.4,8.17777786]
[1733674832108,8.17777786,237.47,237.4,8.17777786]
[1733674833022,8.17777786,237.44,237.37,0.63176324]
[1733674833309,8.17777786,237.43,237.36,8.17777786]
[1733674833684,8.17777786,237.43,237.37,8.17777786]
[1733674834679,8.17777786,237.43,237.36,8.17777786]
[1733674835331,8.17777786,237.42,237.36,8.17777786]
[1733674835722,36.60678957,237.48,237.28,7.32184589]
[1733674835723,8.17777786,237.41,237.28,7.32184589]
[1733674836009,8.17777786,237.37,237.31,8.17777786]
[1733674837913,8.17777786,237.38,237.31,8.17777786]
[1733674838081,8.17777786,237.38,237.32,8.17777786]
[1733674838279,8.17777786,237.4,237.33,8.17777786]
[1733674838484,15.91137786,237.43,237.36,8.17777786]
[1733674838680,15.91137786,237.43,237.37,8.17777786]
[1733674838985,8.17777786,237.45,237.38,8.17777786]
[1733674839186,28.17777786,237.45,237.38,8.17777786]
[1733674839606,10.28337786,237.46,237.39,8.17777786]
[1733674839822,7.7417,237.48,237.41,8.17777786]
[1733674840012,15.91947786,237.48,237.41,8.17777786]
[1733674840823,8.17777786,237.46,237.4,8.17777786]
[1733674841119,8.17777786,237.44,237.37,8.17777786]
[1733674841306,12.77983681,237.44,237.37,12.77983681]
[1733674841828,12.77983681,237.42,237.34,23.776884]
[1733674841997,12.77983681,237.42,237.35,12.77983681]
[1733674844024,12.77983681,237.41,237.34,36.55672081]
[1733674844533,12.77983681,237.39,237.32,12.77983681]
[1733674844698,12.77983681,237.38,237.32,12.77983681]
[1733674845625,12.77983681,237.38,237.31,12.77983681]
[1733674848025,12.77983681,237.38,237.32,12.77983681]
[1733674848406,12.77983681,237.39,237.32,12.77983681]
[1733674849616,12.77983681,237.39,237.26,10.5367]
[1733674849617,12.77983681,237.35,237.23,1.5822]
[1733674849926,12.77983681,237.33,237.26,12.77983681]
[1733674850118,12.77983681,237.33,237.27,12.77983681]
[1733674851603,12.77983681,237.34,237.28,12.77983681]
[1733674852813,12.77983681,237.32,237.24,23.776884]
[1733674853014,12.77983681,237.3,237.24,36.55672081]
[1733674853224,12.77983681,237.3,237.24,12.77983681]
[1733674853824,12.77983681,237.29,237.18,1.5822]
[1733674854034,12.77983681,237.3,237.23,12.77983681]
[1733674855229,12.77983681,237.29,237.22,12.77983681]
[1733674856328,12.77983681,237.3,237.23,12.77983681]
[1733674856712,12.77983681,237.28,237.21,12.77983681]
[1733674859103,12.77983681,237.25,237.18,12.77983681]
[1733674859609,12.77983681,237.26,237.19,12.77983681]
[1733674860008,12.77983681,237.25,237.18,12.77983681]
[1733674860245,12.77983681,237.26,237.19,12.77983681]
[1733674860607,2.1066,237.34,237.18,12.77983681]
[1733674860608,12.77983681,237.25,237.18,12.77983681]
[1733674861119,12.77983681,237.26,237.19,12.77983681]
[1733674861444,12.77983681,237.31,237.25,12.77983681]
[1733674861609,20.0,237.35,237.27,12.77983681]
[1733674861802,12.77983681,237.34,237.27,12.77983681]
[1733674862142,10.0384,237.38,237.29,12.77983681]
[1733674862305,12.77983681,237.36,237.29,12.77983681]
[1733674862934,12.77983681,237.35,237.29,12.77983681]
[1733674863438,8.18524363,237.35,237.29,8.18524363]
[1733674863831,7.9321,237.38,237.32,8.18524363]
[1733674864209,16.11734363,237.38,237.31,8.18524363]
[1733674865117,16.11734363,237.38,237.32,8.18524363]
[1733674865302,8.18524363,237.39,237.33,8.18524363]
[1733674865735,8.18524363,237.4,237.33,8.18524363]
[1733674866039,8.18524363,237.41,237.34,8.18524363]
[1733674866238,8.18524363,237.43,237.36,8.18524363]
[1733674866420,8.18524363,237.43,237.37,8.18524363]
[1733674866939,8.18524363,237.43,237.36,8.18524363]
[1733674867111,8.18524363,237.42,237.35,8.18524363]
[1733674868544,8.18524363,237.39,237.33,8.18524363]
[1733674870109,8.18524363,237.39,237.29,23.776884]
[1733674870333,8.18524363,237.35,237.28,8.18524363]
[1733674870542,8.18524363,237.33,237.26,8.18524363]
[1733674870711,2.1061,237.41,237.24,8.18524363]
[1733674870712,8.18524363,237.31,237.24,8.18524363]
[1733674871210,8.18524363,237.32,237.25,8.18524363]
[1733674873845,8.18524363,237.32,237.22,1.6163]
[1733674874050,5.0,237.42,237.23,31.96212763]
[1733674874051,8.18524363,237.3,237.23,31.96212763]
[1733674874250,8.18524363,237.29,237.23,23.776884]
[1733674874641,8.18524363,237.27,237.17,1.5845]
[1733674874828,8.18524363,237.26,237.17,1.5845]
[1733674875026,8.18524363,237.26,237.19,8.18524363]
[1733674875257,12.79924613,237.26,237.19,12.79924613]
[1733674875560,12.79924613,237.25,237.18,12.79924613]
[1733674875941,12.79924613,237.26,237.18,12.79924613]
[1733674876335,12.79924613,237.24,237.17,12.79924613]
[1733674876849,12.79924613,237.25,237.18,12.79924613]
[1733674877223,12.79924613,237.24,237.17,12.79924613]
[1733674878367,12.79924613,237.23,237.16,12.79924613]
[1733674879585,12.79924613,237.24,237.17,12.79924613]
[1733674880557,12.79924613,237.26,237.2,12.79924613]
[1733674880758,12.79924613,237.28,237.21,12.79924613]
[1733674881063,12.79924613,237.29,237.22,12.79924613]
[1733674881368,12.79924613,237.31,237.24,12.79924613]
[1733674881564,12.79924613,237.32,237.25,12.79924613]
[1733674881994,12.79924613,237.32,237.26,12.79924613]
[1733674882291,12.79924613,237.34,237.28,12.79924613]
[1733674882488,7.9593,237.35,237.25,12.79924613]
[1733674882489,12.79924613,237.32,237.25,12.79924613]
[1733674883194,12.79924613,237.32,237.26,12.79924613]
[1733674884299,12.79924613,237.34,237.27,12.79924613]
[1733674884464,2.1064,237.37,237.31,12.79924613]
[1733674884660,12.79924613,237.39,237.32,12.79924613]
[1733674884990,12.79924613,237.4,237.34,12.79924613]
[1733674885289,12.79924613,237.39,237.32,12.79924613]
[1733674885597,12.79924613,237.42,237.36,12.79924613]
[1733674886087,12.79924613,237.41,237.35,12.79924613]
[1733674886895,12.79924613,237.42,237.35,12.79924613]
[1733674887060,12.79924613,237.41,237.35,12.79924613]
[1733674887257,7.8783,237.46,237.3,12.79924613]
[1733674887258,12.79924613,237.36,237.3,12.79924613]
[1733674887594,12.79924613,237.36,237.22,10.5387]
[1733674887595,12.79924613,237.35,237.28,12.79924613]
[1733674889391,12.79924613,237.33,237.27,12.79924613]
[1733674889687,12.79924613,237.32,237.26,12.79924613]
[1733674891087,12.79924613,237.33,237.27,12.79924613]
[1733674892187,12.79924613,237.32,237.26,12.79924613]
[1733674894487,12.79924613,237.35,237.28,12.79924613]
[1733674894975,12.79924613,237.34,237.27,12.79924613]
[1733674896579,12.79924613,237.35,237.29,12.79924613]
[1733674896964,12.79924613,237.35,237.28,12.79924613]
[1733674897572,12.79924613,237.32,237.26,12.79924613]
[1733674897875,12.79924613,237.29,237.23,1.5079]
[1733674898296,12.79924613,237.3,237.23,14.30714613]
[1733674898588,12.79924613,237.31,237.24,12.79924613]
[1733674899887,12.79924613,237.33,237.26,12.79924613]
[1733674900594,12.79924613,237.32,237.25,12.79924613]
[1733674901065,12.79924613,237.34,237.27,12.79924613]
[1733674901871,12.79924613,237.33,237.24,43.776884]
[1733674902093,12.79924613,237.33,237.26,12.79924613]
[1733674902684,12.79924613,237.32,237.25,12.79924613]
[1733674903679,12.79924613,237.3,237.23,14.30714613]
[1733674904385,12.79924613,237.31,237.24,12.79924613]
[1733674904590,12.79924613,237.32,237.25,12.79924613]
[1733674905007,12.79924613,237.32,237.26,12.79924613]
[1733674905296,12.79924613,237.32,237.23,1.5079]
[1733674905297,12.79924613,237.34,237.27,12.79924613]
[1733674906079,12.79924613,237.33,237.26,12.79924613]
[1733674907107,12.79924613,237.32,237.25,12.79924613]
[1733674907789,12.79924613,237.29,237.22,12.79924613]
[1733674908399,12.79924613,237.3,237.23,12.79924613]
[1733674910007,12.79924613,237.29,237.22,12.79924613]
[1733674910688,12.79924613,237.3,237.23,12.79924613]
[1733674912307,12.79924613,237.33,237.26,12.79924613]
[1733674914074,12.79924613,237.32,237.25,12.79924613]
[1733674914474,12.79924613,237.31,237.24,12.79924613]
[1733674914703,12.79924613,237.3,237.23,12.79924613]
[1733674914907,12.79924613,237.28,237.2,12.79924613]
[1733674916399,12.79924613,237.26,237.18,34.36724613]
[1733674916604,12.79924613,237.26,237.18,14.36724613]
[1733674918816,12.79924613,237.27,237.21,12.79924613]
[1733674919184,12.79924613,237.28,237.21,12.79924613]
[1733674919381,12.79924613,237.31,237.25,12.79924613]
[1733674919909,12.79924613,237.29,237.22,12.79924613]
[1733674920077,12.79924613,237.27,237.2,12.79924613]
[1733674920496,12.79924613,237.26,237.2,12.79924613]
[1733674921276,12.79924613,237.27,237.2,12.79924613]
[1733674921803,12.79924613,237.26,237.2,12.79924613]
[1733674921983,12.79924613,237.26,237.19,12.79924613]
[1733674922310,2.107,237.3,237.16,12.79924613]
[1733674922311,12.79924613,237.23,237.16,12.79924613]
[1733674922618,12.79924613,237.21,237.14,12.79924613]
[1733674922795,12.79924613,237.2,237.14,12.79924613]
[1733674923313,8.19537155,237.2,237.14,8.19537155]
[1733674923500,2.1074,237.25,237.16,8.19537155]
[1733674923702,8.19537155,237.23,237.16,8.19537155]
[1733674923885,8.19537155,237.22,237.15,8.19537155]
[1733674924314,8.19537155,237.21,237.15,8.19537155]
[1733674925402,8.19537155,237.22,237.15,8.19537155]
[1733674927095,8.19537155,237.2,237.13,8.19537155]
[1733674927301,8.19537155,237.19,237.12,9.84157155]
[1733674927488,8.19537155,237.18,237.12,8.19537155]
[1733674927687,8.19537155,237.17,237.06,1.5203]
[1733674928005,8.19537155,237.17,237.1,8.19537155]
[1733674928395,8.19537155,237.17,237.11,8.19537155]
[1733674928717,8.19537155,237.24,237.16,8.19537155]
[1733674929015,28.19537155,237.25,237.19,8.19537155]
[1733674929220,2.1073,237.27,237.18,12.80087509]